[Event "Early-Titled-Tuesday-Blitz-May-07-2024"]
[Site "Chess.com"]
[Date "2024.05.07"]
[Round "10"]
[White "Aisen1011"]
[Black "Chernov_Alexander_A"]
[Result "1/2-1/2"]
[WhiteElo "2455"]
[BlackElo "2268"]
[TimeControl "180+1"]
[EndTime "10:02:47 PDT"]
[Termination "Game drawn by repetition"]

1. d4 {[%clk 0:02:59.3]} 1... Nf6 {[%clk 0:02:59.4]} 2. c4 {[%clk 0:02:59.8]}
2... e6 {[%clk 0:02:59.5]} 3. Nc3 {[%clk 0:03:00.2]} 3... d5 {[%clk 0:02:57]} 4.
cxd5 {[%clk 0:03:00.1]} 4... Nxd5 {[%clk 0:02:56.1]} 5. e4 {[%clk 0:03:00.1]}
5... Nxc3 {[%clk 0:02:56.2]} 6. bxc3 {[%clk 0:03:01]} 6... c5 {[%clk 0:02:56.3]}
7. Nf3 {[%clk 0:02:58.8]} 7... cxd4 {[%clk 0:02:55.4]} 8. cxd4 {[%clk
0:02:59.7]} 8... Bb4+ {[%clk 0:02:55]} 9. Bd2 {[%clk 0:03:00.4]} 9... Bxd2+
{[%clk 0:02:52.5]} 10. Qxd2 {[%clk 0:03:01.3]} 10... O-O {[%clk 0:02:52.2]} 11.
Be2 {[%clk 0:02:48.2]} 11... Nd7 {[%clk 0:02:51.8]} 12. O-O {[%clk 0:02:47.3]}
12... Nf6 {[%clk 0:02:51.1]} 13. Bd3 {[%clk 0:02:44.4]} 13... b6 {[%clk
0:02:50.9]} 14. Rac1 {[%clk 0:02:44.1]} 14... Bb7 {[%clk 0:02:50.5]} 15. Qf4
{[%clk 0:02:44.7]} 15... Rc8 {[%clk 0:02:39.1]} 16. Rxc8 {[%clk 0:02:43.4]}
16... Qxc8 {[%clk 0:02:38.9]} 17. Rc1 {[%clk 0:02:43.4]} 17... Qb8 {[%clk
0:02:37.1]} 18. e5 {[%clk 0:02:31.6]} 18... Nd5 {[%clk 0:02:25.9]} 19. Bxh7+
{[%clk 0:02:20.3]} 19... Kxh7 {[%clk 0:02:23.7]} 20. Qh4+ {[%clk 0:02:17.4]}
20... Kg8 {[%clk 0:02:10]} 21. Ng5 {[%clk 0:02:17.1]} 21... Rc8 {[%clk
0:02:09.4]} 22. Rf1 {[%clk 0:01:58.4]} 22... Qc7 {[%clk 0:01:57.6]} 23. Qh7+
{[%clk 0:01:54.3]} 23... Kf8 {[%clk 0:01:57.4]} 24. Qh8+ {[%clk 0:01:48.5]}
24... Ke7 {[%clk 0:01:57.2]} 25. Qxg7 {[%clk 0:01:49.4]} 25... Rf8 {[%clk
0:01:32.5]} 26. h4 {[%clk 0:01:46.1]} 26... Qc2 {[%clk 0:01:12.2]} 27. h5 {[%clk
0:01:11.2]} 27... Qf5 {[%clk 0:01:07.2]} 28. Rc1 {[%clk 0:00:53.3]} 28... Rc8
{[%clk 0:00:32.8]} 29. Rxc8 {[%clk 0:00:50.4]} 29... Bxc8 {[%clk 0:00:31.5]} 30.
Nh7 {[%clk 0:00:42.4]} 30... Qxh5 {[%clk 0:00:23.8]} 31. Qf8+ {[%clk 0:00:27.6]}
31... Kd7 {[%clk 0:00:23.4]} 32. Qd6+ {[%clk 0:00:25.1]} 32... Ke8 {[%clk
0:00:21]} 33. Nf6+ {[%clk 0:00:04.8]} 33... Nxf6 {[%clk 0:00:19.3]} 34. exf6
{[%clk 0:00:05.7]} 34... Qd1+ {[%clk 0:00:18.4]} 35. Kh2 {[%clk 0:00:06.2]}
35... Qh5+ {[%clk 0:00:18]} 36. Kg1 {[%clk 0:00:06.5]} 36... Qd1+ {[%clk
0:00:17.6]} 37. Kh2 {[%clk 0:00:06.8]} 37... Qh5+ {[%clk 0:00:16.6]} 38. Kg1
{[%clk 0:00:07.3]} 1/2-1/2

[Event "Early-Titled-Tuesday-Blitz-May-07-2024"]
[Site "Chess.com"]
[Date "2024.05.07"]
[Round "10"]
[White "IwkooO"]
[Black "mbojan"]
[Result "1-0"]
[WhiteElo "2719"]
[BlackElo "2888"]
[TimeControl "180+1"]
[EndTime "10:02:48 PDT"]
[Termination "IwkooO won by checkmate"]

1. e4 {[%clk 0:03:00.9]} 1... a6 {[%clk 0:03:00.9]} 2. d4 {[%clk 0:03:00.2]}
2... e6 {[%clk 0:03:01.3]} 3. Bd3 {[%clk 0:02:56.7]} 3... d5 {[%clk 0:03:01.6]}
4. exd5 {[%clk 0:02:57.3]} 4... exd5 {[%clk 0:03:02.5]} 5. Nf3 {[%clk
0:02:56.5]} 5... Bd6 {[%clk 0:03:02.8]} 6. O-O {[%clk 0:02:56.9]} 6... Ne7
{[%clk 0:03:03.5]} 7. c4 {[%clk 0:02:54.5]} 7... dxc4 {[%clk 0:03:04.4]} 8. Bxc4
{[%clk 0:02:54.6]} 8... O-O {[%clk 0:03:05.3]} 9. Nc3 {[%clk 0:02:55.2]} 9...
Nbc6 {[%clk 0:03:05.6]} 10. h3 {[%clk 0:02:55.4]} 10... Bf5 {[%clk 0:03:05.8]}
11. Be3 {[%clk 0:02:55.5]} 11... Ng6 {[%clk 0:03:05.1]} 12. Re1 {[%clk
0:02:54.7]} 12... Nh4 {[%clk 0:03:00.6]} 13. Nxh4 {[%clk 0:02:53.9]} 13... Qxh4
{[%clk 0:03:01.5]} 14. Qf3 {[%clk 0:02:54.2]} 14... Bg6 {[%clk 0:03:00.9]} 15.
Qg4 {[%clk 0:02:40.9]} 15... Qxg4 {[%clk 0:02:59.3]} 16. hxg4 {[%clk 0:02:41.8]}
16... Rae8 {[%clk 0:02:59.5]} 17. a3 {[%clk 0:02:40.6]} 17... Na5 {[%clk
0:02:57.4]} 18. Ba2 {[%clk 0:02:40.5]} 18... Bd3 {[%clk 0:02:58.1]} 19. Rac1
{[%clk 0:02:35.6]} 19... Bc4 {[%clk 0:02:55.3]} 20. Bb1 {[%clk 0:02:35.6]} 20...
Be6 {[%clk 0:02:52]} 21. Ne4 {[%clk 0:02:21.2]} 21... Bxg4 {[%clk 0:02:22.3]}
22. Nxd6 {[%clk 0:02:21.2]} 22... cxd6 {[%clk 0:02:23.2]} 23. Bf4 {[%clk
0:02:20]} 23... Rxe1+ {[%clk 0:02:18.4]} 24. Rxe1 {[%clk 0:02:20.9]} 24... Nc4
{[%clk 0:02:18.2]} 25. b3 {[%clk 0:02:18.5]} 25... g5 {[%clk 0:01:49.7]} 26. Bg3
{[%clk 0:02:04.7]} 26... Nd2 {[%clk 0:01:49.8]} 27. Bxd6 {[%clk 0:02:03.5]}
27... Rd8 {[%clk 0:01:49.5]} 28. Be7 {[%clk 0:02:02.6]} 28... Re8 {[%clk
0:01:41.9]} 29. Bc2 {[%clk 0:02:00.8]} 29... f5 {[%clk 0:01:19.7]} 30. Re5
{[%clk 0:01:38.7]} 30... Kf7 {[%clk 0:01:15.2]} 31. Bxg5 {[%clk 0:01:37.5]}
31... Rxe5 {[%clk 0:01:08.6]} 32. dxe5 {[%clk 0:01:38.4]} 32... Ne4 {[%clk
0:01:09.1]} 33. Be3 {[%clk 0:01:31.6]} 33... Nc3 {[%clk 0:00:33.7]} 34. f3
{[%clk 0:01:28.9]} 34... Bh5 {[%clk 0:00:14.2]} 35. Bxf5 {[%clk 0:01:28.1]}
35... Bg6 {[%clk 0:00:14.9]} 36. Bc8 {[%clk 0:01:27.5]} 36... Nd5 {[%clk
0:00:12.9]} 37. Bg5 {[%clk 0:01:20.2]} 37... Bc2 {[%clk 0:00:12.3]} 38. e6+
{[%clk 0:01:01]} 38... Kg6 {[%clk 0:00:04.2]} 39. Bxb7 {[%clk 0:01:01.4]} 39...
Kxg5 {[%clk 0:00:01.9]} 40. Bxd5 {[%clk 0:01:01.1]} 40... Kf6 {[%clk 0:00:02.7]}
41. Kf2 {[%clk 0:01:00.6]} 41... Bd3 {[%clk 0:00:03.3]} 42. Ke3 {[%clk 0:01:01]}
42... Bf1 {[%clk 0:00:03.4]} 43. g4 {[%clk 0:01:01.3]} 43... h6 {[%clk
0:00:03.9]} 44. Bc4 {[%clk 0:01:00.2]} 44... Bh3 {[%clk 0:00:02]} 45. Kf2 {[%clk
0:00:59.7]} 45... h5 {[%clk 0:00:02.6]} 46. Kg3 {[%clk 0:00:59.8]} 46... hxg4
{[%clk 0:00:03.1]} 47. fxg4 {[%clk 0:01:00.1]} 47... Bf1 {[%clk 0:00:04]} 48.
Bxf1 {[%clk 0:00:59.9]} 48... a5 {[%clk 0:00:04.6]} 49. Bc4 {[%clk 0:00:59.2]}
49... Ke7 {[%clk 0:00:05.5]} 50. Kf4 {[%clk 0:00:59.3]} 50... Kd6 {[%clk
0:00:06.4]} 51. g5 {[%clk 0:00:59.4]} 51... Kc5 {[%clk 0:00:07.3]} 52. a4 {[%clk
0:00:59.4]} 52... Kb4 {[%clk 0:00:07.6]} 53. e7 {[%clk 0:00:59.3]} 53... Ka3
{[%clk 0:00:08.5]} 54. e8=Q {[%clk 0:00:59.6]} 54... Kb2 {[%clk 0:00:09.4]} 55.
g6 {[%clk 0:00:59.6]} 55... Ka2 {[%clk 0:00:10.3]} 56. g7 {[%clk 0:01:00]} 56...
Kb2 {[%clk 0:00:11.2]} 57. g8=Q {[%clk 0:00:58.9]} 57... Kb1 {[%clk 0:00:12.1]}
58. Qe2 {[%clk 0:00:57.2]} 58... Ka1 {[%clk 0:00:13]} 59. b4 {[%clk 0:00:51.3]}
59... Kb1 {[%clk 0:00:13.9]} 60. b5 {[%clk 0:00:51.1]} 60... Ka1 {[%clk
0:00:14.8]} 61. b6 {[%clk 0:00:51.5]} 61... Kb1 {[%clk 0:00:15.7]} 62. b7 {[%clk
0:00:50.8]} 62... Ka1 {[%clk 0:00:16.6]} 63. Bd5 {[%clk 0:00:49]} 63... Kb1
{[%clk 0:00:17.5]} 64. b8=Q+ {[%clk 0:00:49.1]} 64... Ka1 {[%clk 0:00:18.4]} 65.
Qg7# {[%clk 0:00:47.7]} 1-0

[Event "Early-Titled-Tuesday-Blitz-May-07-2024"]
[Site "Chess.com"]
[Date "2024.05.07"]
[Round "10"]
[White "Mikhail_Bryakin"]
[Black "ravengelic"]
[Result "1-0"]
[WhiteElo "2898"]
[BlackElo "2671"]
[TimeControl "180+1"]
[EndTime "10:02:50 PDT"]
[Termination "Mikhail_Bryakin won on time"]

1. c4 {[%clk 0:02:57.8]} 1... Nf6 {[%clk 0:02:45.5]} 2. g3 {[%clk 0:02:57.3]}
2... g6 {[%clk 0:02:45.8]} 3. Bg2 {[%clk 0:02:57.7]} 3... Bg7 {[%clk 0:02:46.5]}
4. Nc3 {[%clk 0:02:58]} 4... d6 {[%clk 0:02:47.1]} 5. d4 {[%clk 0:02:56.3]} 5...
O-O {[%clk 0:02:47.6]} 6. e4 {[%clk 0:02:54]} 6... c5 {[%clk 0:02:46.9]} 7. Nge2
{[%clk 0:02:52.5]} 7... cxd4 {[%clk 0:02:47.2]} 8. Nxd4 {[%clk 0:02:52.3]} 8...
Nc6 {[%clk 0:02:47.9]} 9. Nxc6 {[%clk 0:02:45.5]} 9... bxc6 {[%clk 0:02:47.9]}
10. O-O {[%clk 0:02:46.1]} 10... Nd7 {[%clk 0:02:47.3]} 11. Be3 {[%clk
0:02:43.5]} 11... Nc5 {[%clk 0:02:44.4]} 12. Qc2 {[%clk 0:02:41.6]} 12... a5
{[%clk 0:02:43.9]} 13. b3 {[%clk 0:02:41.4]} 13... Qc7 {[%clk 0:02:38]} 14. Rad1
{[%clk 0:02:41.6]} 14... Ne6 {[%clk 0:02:23.9]} 15. f4 {[%clk 0:02:39.1]} 15...
Bb7 {[%clk 0:02:23.9]} 16. Rd2 {[%clk 0:02:29]} 16... c5 {[%clk 0:02:22.7]} 17.
Nb5 {[%clk 0:02:25.5]} 17... Qb8 {[%clk 0:02:21.4]} 18. f5 {[%clk 0:02:25.6]}
18... Nc7 {[%clk 0:02:12.6]} 19. a4 {[%clk 0:02:18.6]} 19... Na6 {[%clk
0:02:11.8]} 20. Bg5 {[%clk 0:02:10.9]} 20... Nb4 {[%clk 0:02:03.6]} 21. Qd1
{[%clk 0:02:09]} 21... Nc6 {[%clk 0:02:02]} 22. f6 {[%clk 0:02:06.4]} 22... exf6
{[%clk 0:01:56.9]} 23. Bxf6 {[%clk 0:02:03.3]} 23... Bxf6 {[%clk 0:01:44.6]} 24.
Rxf6 {[%clk 0:02:04.2]} 24... Ne5 {[%clk 0:01:22.6]} 25. Rdxd6 {[%clk
0:01:57.2]} 25... Qc8 {[%clk 0:00:56.4]} 26. h3 {[%clk 0:01:54.2]} 26... Bc6
{[%clk 0:00:49.1]} 27. Qd2 {[%clk 0:01:39.1]} 27... Re8 {[%clk 0:00:43.4]} 28.
Nc3 {[%clk 0:01:35.7]} 28... Qb7 {[%clk 0:00:37.9]} 29. Qc2 {[%clk 0:01:32.8]}
29... Rad8 {[%clk 0:00:32.6]} 30. Nb5 {[%clk 0:01:27.8]} 30... Bxb5 {[%clk
0:00:25.3]} 31. axb5 {[%clk 0:01:25.6]} 31... Rxd6 {[%clk 0:00:20.6]} 32. Rxd6
{[%clk 0:01:26.5]} 32... Qe7 {[%clk 0:00:20.8]} 33. Rd5 {[%clk 0:01:25]} 33...
h5 {[%clk 0:00:20]} 34. Qd2 {[%clk 0:01:16.2]} 34... h4 {[%clk 0:00:19.8]} 35.
gxh4 {[%clk 0:01:11.2]} 35... Qxh4 {[%clk 0:00:19.5]} 36. Qf2 {[%clk 0:01:11.9]}
36... Qg5 {[%clk 0:00:18.2]} 37. Qxc5 {[%clk 0:01:08.1]} 37... Re6 {[%clk
0:00:17.1]} 38. b6 {[%clk 0:00:56.4]} 38... Qc1+ {[%clk 0:00:16.8]} 39. Kh2
{[%clk 0:00:51.9]} 39... Qf4+ {[%clk 0:00:17.2]} 40. Kh1 {[%clk 0:00:52.6]}
40... Qc1+ {[%clk 0:00:10.8]} 41. Qg1 {[%clk 0:00:52.7]} 41... Qb2 {[%clk
0:00:10.6]} 42. b7 {[%clk 0:00:50.3]} 42... Re8 {[%clk 0:00:07.4]} 43. Rc5
{[%clk 0:00:45]} 43... Qxb3 {[%clk 0:00:04.4]} 44. Rc8 {[%clk 0:00:45.5]} 44...
Kf8 {[%clk 0:00:04.8]} 45. Qc5+ {[%clk 0:00:45.3]} 45... Kg7 {[%clk 0:00:05.3]}
46. Rxe8 {[%clk 0:00:45.5]} 46... Qb1+ {[%clk 0:00:01.7]} 47. Kh2 {[%clk
0:00:45.1]} 47... Qb2 {[%clk 0:00:01.4]} 48. Qxe5+ {[%clk 0:00:44.8]} 48...
Qxe5+ {[%clk 0:00:00.3]} 49. Rxe5 {[%clk 0:00:45.7]} 1-0

[Event "Early-Titled-Tuesday-Blitz-May-07-2024"]
[Site "Chess.com"]
[Date "2024.05.07"]
[Round "10"]
[White "LoaySameer"]
[Black "ChessSwole"]
[Result "1-0"]
[WhiteElo "2549"]
[BlackElo "2628"]
[TimeControl "180+1"]
[EndTime "10:02:51 PDT"]
[Termination "LoaySameer won on time"]

1. Nf3 {[%clk 0:03:00.9]} 1... c5 {[%clk 0:02:57.8]} 2. g3 {[%clk 0:03:00.3]}
2... Nc6 {[%clk 0:02:57.7]} 3. Bg2 {[%clk 0:03:00.9]} 3... e5 {[%clk 0:02:57.4]}
4. O-O {[%clk 0:03:01.4]} 4... d5 {[%clk 0:02:56.4]} 5. d3 {[%clk 0:03:00.6]}
5... Nf6 {[%clk 0:02:56.2]} 6. Nc3 {[%clk 0:03:01.1]} 6... Be7 {[%clk 0:02:56]}
7. e4 {[%clk 0:03:00.8]} 7... dxe4 {[%clk 0:02:56.6]} 8. dxe4 {[%clk 0:03:01]}
8... Qxd1 {[%clk 0:02:56.2]} 9. Rxd1 {[%clk 0:03:01]} 9... Bg4 {[%clk
0:02:56.3]} 10. Re1 {[%clk 0:02:57.4]} 10... Bxf3 {[%clk 0:02:53]} 11. Bxf3
{[%clk 0:02:58.3]} 11... Nd4 {[%clk 0:02:51.8]} 12. Bd1 {[%clk 0:02:58.1]} 12...
O-O-O {[%clk 0:02:51]} 13. Bg5 {[%clk 0:02:55]} 13... Ng8 {[%clk 0:02:45.6]} 14.
Be3 {[%clk 0:02:53.8]} 14... Bd6 {[%clk 0:02:37.1]} 15. Nd5 {[%clk 0:02:51.7]}
15... Ne7 {[%clk 0:02:35.5]} 16. c3 {[%clk 0:02:52]} 16... Nxd5 {[%clk
0:02:28.8]} 17. exd5 {[%clk 0:02:52.9]} 17... Nf5 {[%clk 0:02:21.1]} 18. Bg5
{[%clk 0:02:51.9]} 18... Rde8 {[%clk 0:02:03.8]} 19. Bg4 {[%clk 0:02:50.1]}
19... g6 {[%clk 0:02:03.8]} 20. Bf6 {[%clk 0:02:48.5]} 20... Rhg8 {[%clk
0:02:03.6]} 21. Re4 {[%clk 0:02:24.3]} 21... Be7 {[%clk 0:01:43.2]} 22. Bxe5
{[%clk 0:02:13.1]} 22... Kd8 {[%clk 0:01:21.5]} 23. Rae1 {[%clk 0:02:08.9]}
23... Nd6 {[%clk 0:01:22]} 24. R4e2 {[%clk 0:02:04]} 24... f5 {[%clk 0:01:17]}
25. Bf3 {[%clk 0:02:03.7]} 25... Nc4 {[%clk 0:01:14.7]} 26. d6 {[%clk
0:01:37.1]} 26... Bxd6 {[%clk 0:01:07.7]} 27. Bf6+ {[%clk 0:01:36.5]} 27... Kd7
{[%clk 0:01:07.2]} 28. Bd5 {[%clk 0:01:36.7]} 28... Nb6 {[%clk 0:00:41.4]} 29.
Bxg8 {[%clk 0:01:34.2]} 29... Rxg8 {[%clk 0:00:42.3]} 30. Rd1 {[%clk 0:01:29.3]}
30... Kc7 {[%clk 0:00:24.9]} 31. Be5 {[%clk 0:01:26.3]} 31... Bxe5 {[%clk
0:00:22.4]} 32. Rxe5 {[%clk 0:01:27.2]} 32... Kc6 {[%clk 0:00:22.8]} 33. Re7
{[%clk 0:01:21.8]} 33... h5 {[%clk 0:00:20.6]} 34. b3 {[%clk 0:01:21.7]} 34...
c4 {[%clk 0:00:18.1]} 35. b4 {[%clk 0:01:18.4]} 35... h4 {[%clk 0:00:15.6]} 36.
gxh4 {[%clk 0:00:57.9]} 36... Rh8 {[%clk 0:00:15.3]} 37. Re6+ {[%clk 0:00:58]}
37... Kb5 {[%clk 0:00:15.4]} 38. Re5+ {[%clk 0:00:47.4]} 38... Kc6 {[%clk
0:00:14.1]} 39. b5+ {[%clk 0:00:39.5]} 39... Kc7 {[%clk 0:00:14.1]} 40. Rc5+
{[%clk 0:00:39.9]} 40... Kb8 {[%clk 0:00:14.1]} 41. Rd6 {[%clk 0:00:40.3]} 41...
Rg8 {[%clk 0:00:06.1]} 42. Kf1 {[%clk 0:00:34.3]} 42... Nc8 {[%clk 0:00:05.1]}
43. Rd7 {[%clk 0:00:32.4]} 43... Nb6 {[%clk 0:00:04.3]} 44. Rh7 {[%clk
0:00:31.8]} 44... Rd8 {[%clk 0:00:03.5]} 45. Rcc7 {[%clk 0:00:30.5]} 45... Nc8
{[%clk 0:00:02.3]} 46. Rxb7+ {[%clk 0:00:30.3]} 46... Ka8 {[%clk 0:00:03.2]} 47.
Rbd7 {[%clk 0:00:30.4]} 47... Re8 {[%clk 0:00:03.2]} 48. Rc7 {[%clk 0:00:29.9]}
48... Kb8 {[%clk 0:00:02.6]} 49. Rcg7 {[%clk 0:00:29.5]} 1-0

[Event "Early-Titled-Tuesday-Blitz-May-07-2024"]
[Site "Chess.com"]
[Date "2024.05.07"]
[Round "10"]
[White "Slovineanu"]
[Black "VacheH009"]
[Result "1-0"]
[WhiteElo "2481"]
[BlackElo "2565"]
[TimeControl "180+1"]
[EndTime "10:02:52 PDT"]
[Termination "Slovineanu won by resignation"]

1. e4 {[%clk 0:03:00.9]} 1... e5 {[%clk 0:02:58.5]} 2. Nf3 {[%clk 0:03:00.8]}
2... Nc6 {[%clk 0:02:59]} 3. Bb5 {[%clk 0:03:01.2]} 3... a6 {[%clk 0:02:58.9]}
4. Ba4 {[%clk 0:03:01.5]} 4... Nf6 {[%clk 0:02:59.3]} 5. Bxc6 {[%clk 0:03:02.1]}
5... dxc6 {[%clk 0:02:58.8]} 6. Qe2 {[%clk 0:03:02.7]} 6... Bd6 {[%clk
0:02:54.9]} 7. d3 {[%clk 0:03:02.8]} 7... h6 {[%clk 0:02:50.8]} 8. Nbd2 {[%clk
0:03:02.7]} 8... Be6 {[%clk 0:02:48.8]} 9. h3 {[%clk 0:03:01.4]} 9... Qe7 {[%clk
0:02:48.3]} 10. Nf1 {[%clk 0:03:01.4]} 10... O-O-O {[%clk 0:02:29.1]} 11. Ng3
{[%clk 0:02:56.5]} 11... g6 {[%clk 0:02:19.2]} 12. Bd2 {[%clk 0:02:55]} 12...
Nd7 {[%clk 0:02:16.2]} 13. Nf1 {[%clk 0:02:39.5]} 13... g5 {[%clk 0:02:12.6]}
14. Ne3 {[%clk 0:02:38.4]} 14... h5 {[%clk 0:02:09.7]} 15. Nf5 {[%clk
0:02:03.4]} 15... Bxf5 {[%clk 0:02:09.1]} 16. exf5 {[%clk 0:01:58.7]} 16... f6
{[%clk 0:01:48.8]} 17. O-O-O {[%clk 0:01:55.8]} 17... Bb4 {[%clk 0:01:44]} 18.
a3 {[%clk 0:01:51.6]} 18... Bxd2+ {[%clk 0:01:43.5]} 19. Nxd2 {[%clk 0:01:51.8]}
19... Nc5 {[%clk 0:01:42.4]} 20. Ne4 {[%clk 0:01:50.8]} 20... Rd4 {[%clk
0:01:35.8]} 21. f3 {[%clk 0:01:38.7]} 21... h4 {[%clk 0:01:33.5]} 22. c3 {[%clk
0:01:24]} 22... Rd7 {[%clk 0:01:30.5]} 23. Rhe1 {[%clk 0:01:14.9]} 23... Rhd8
{[%clk 0:01:28.9]} 24. d4 {[%clk 0:01:08.5]} 24... exd4 {[%clk 0:01:15.4]} 25.
Nxc5 {[%clk 0:00:51.9]} 25... Qxc5 {[%clk 0:01:12.6]} 26. Qe6 {[%clk 0:00:49.3]}
26... Kb8 {[%clk 0:00:53]} 27. Qxf6 {[%clk 0:00:48.4]} 27... dxc3 {[%clk
0:00:48]} 28. Qxc3 {[%clk 0:00:20.1]} 28... Rxd1+ {[%clk 0:00:17.7]} 29. Rxd1
{[%clk 0:00:19.8]} 29... Rd4 {[%clk 0:00:17.1]} 30. Rxd4 {[%clk 0:00:18.5]}
30... Qxf5 {[%clk 0:00:16.5]} 31. Rd8+ {[%clk 0:00:16.6]} 31... Ka7 {[%clk
0:00:13.3]} 32. Qd4+ {[%clk 0:00:15.8]} 32... b6 {[%clk 0:00:13.6]} 33. Rd7
{[%clk 0:00:13.9]} 33... Kb7 {[%clk 0:00:11.9]} 34. Qd6 {[%clk 0:00:13.2]} 34...
a5 {[%clk 0:00:08.7]} 35. Qxc7+ {[%clk 0:00:13.2]} 35... Ka6 {[%clk 0:00:09.6]}
36. Qxc6 {[%clk 0:00:10.7]} 36... Qf4+ {[%clk 0:00:10.1]} 37. Kb1 {[%clk
0:00:10.2]} 37... Qf5+ {[%clk 0:00:09.8]} 38. Ka2 {[%clk 0:00:10]} 38... Qf4
{[%clk 0:00:07.5]} 39. Rd5 {[%clk 0:00:08.7]} 39... Qf7 {[%clk 0:00:05.5]} 40.
Qa8+ {[%clk 0:00:08.7]} 1-0

[Event "Early-Titled-Tuesday-Blitz-May-07-2024"]
[Site "Chess.com"]
[Date "2024.05.07"]
[Round "10"]
[White "Lady_Nika"]
[Black "ploxoi"]
[Result "1-0"]
[WhiteElo "2480"]
[BlackElo "2338"]
[TimeControl "180+1"]
[EndTime "10:02:57 PDT"]
[Termination "Lady_Nika won by checkmate"]

1. b4 {[%clk 0:03:00]} 1... d5 {[%clk 0:02:48.7]} 2. Bb2 {[%clk 0:02:58.9]} 2...
Qd6 {[%clk 0:02:49.4]} 3. a3 {[%clk 0:02:56.7]} 3... e5 {[%clk 0:02:49.7]} 4. d4
{[%clk 0:02:55.7]} 4... e4 {[%clk 0:02:44.3]} 5. e3 {[%clk 0:02:55.1]} 5... Be6
{[%clk 0:02:43.5]} 6. Nd2 {[%clk 0:02:54.4]} 6... c6 {[%clk 0:02:41.6]} 7. c4
{[%clk 0:02:54.2]} 7... f5 {[%clk 0:02:41]} 8. Qc2 {[%clk 0:02:47.4]} 8... Nd7
{[%clk 0:02:39.1]} 9. Nb3 {[%clk 0:02:43.3]} 9... dxc4 {[%clk 0:02:34.5]} 10.
Bxc4 {[%clk 0:02:42.9]} 10... Bxc4 {[%clk 0:02:34.5]} 11. Qxc4 {[%clk
0:02:43.8]} 11... Ngf6 {[%clk 0:02:32.6]} 12. Nc5 {[%clk 0:02:43.6]} 12... Nb6
{[%clk 0:02:28.7]} 13. Qc2 {[%clk 0:02:32.5]} 13... Rb8 {[%clk 0:02:24]} 14. Ne2
{[%clk 0:02:32.3]} 14... Nbd5 {[%clk 0:02:19.9]} 15. h3 {[%clk 0:02:27.2]} 15...
Be7 {[%clk 0:02:19.6]} 16. O-O {[%clk 0:02:23]} 16... O-O {[%clk 0:02:18.6]} 17.
Rae1 {[%clk 0:02:21]} 17... Bd8 {[%clk 0:02:09.5]} 18. Nc3 {[%clk 0:02:17.9]}
18... h5 {[%clk 0:02:04.4]} 19. f3 {[%clk 0:02:14.3]} 19... Bc7 {[%clk
0:02:03.1]} 20. f4 {[%clk 0:02:12.8]} 20... Nxc3 {[%clk 0:01:52.6]} 21. Qxc3
{[%clk 0:02:10.2]} 21... Qd5 {[%clk 0:01:48.2]} 22. a4 {[%clk 0:02:01.1]} 22...
Nd7 {[%clk 0:01:35.1]} 23. Rc1 {[%clk 0:01:52.7]} 23... Nb6 {[%clk 0:01:25.4]}
24. Ba3 {[%clk 0:01:39]} 24... Rfc8 {[%clk 0:01:11.9]} 25. a5 {[%clk 0:01:28.7]}
25... Nd7 {[%clk 0:01:09.6]} 26. Bb2 {[%clk 0:01:16.1]} 26... Bd8 {[%clk
0:00:57.6]} 27. Rfd1 {[%clk 0:01:06.9]} 27... Be7 {[%clk 0:00:55.2]} 28. Nxd7
{[%clk 0:00:59.2]} 28... Qxd7 {[%clk 0:00:54.9]} 29. d5 {[%clk 0:00:56.6]} 29...
Bf6 {[%clk 0:00:45.4]} 30. Qb3 {[%clk 0:00:56.6]} 30... cxd5 {[%clk 0:00:25.5]}
31. Rxc8+ {[%clk 0:00:52.1]} 31... Rxc8 {[%clk 0:00:22.7]} 32. Bxf6 {[%clk
0:00:51.8]} 32... gxf6 {[%clk 0:00:23.1]} 33. Qxd5+ {[%clk 0:00:51]} 33... Qxd5
{[%clk 0:00:22.2]} 34. Rxd5 {[%clk 0:00:51.9]} 34... Rc3 {[%clk 0:00:08.6]} 35.
Kf2 {[%clk 0:00:50.5]} 35... a6 {[%clk 0:00:05.3]} 36. Rxf5 {[%clk 0:00:50]}
36... Rc2+ {[%clk 0:00:04.8]} 37. Kg3 {[%clk 0:00:49.7]} 37... h4+ {[%clk
0:00:05.4]} 38. Kxh4 {[%clk 0:00:46.6]} 38... Kf7 {[%clk 0:00:06.1]} 39. g4
{[%clk 0:00:43.1]} 39... Rb2 {[%clk 0:00:03.6]} 40. g5 {[%clk 0:00:42.9]} 40...
Rxb4 {[%clk 0:00:03.9]} 41. Rxf6+ {[%clk 0:00:43.1]} 41... Kg7 {[%clk
0:00:04.8]} 42. f5 {[%clk 0:00:43.2]} 42... Rb5 {[%clk 0:00:04.7]} 43. Kg4
{[%clk 0:00:41.6]} 43... Rxa5 {[%clk 0:00:04.8]} 44. Rd6 {[%clk 0:00:40.8]}
44... Rb5 {[%clk 0:00:05.2]} 45. Rd7+ {[%clk 0:00:41]} 45... Kf8 {[%clk
0:00:05.4]} 46. g6 {[%clk 0:00:41.3]} 46... a5 {[%clk 0:00:05]} 47. Kg5 {[%clk
0:00:41]} 47... a4 {[%clk 0:00:05.6]} 48. g7+ {[%clk 0:00:41]} 48... Kg8 {[%clk
0:00:06]} 49. Kg6 {[%clk 0:00:41.5]} 49... Rb6+ {[%clk 0:00:03.4]} 50. f6 {[%clk
0:00:41.8]} 50... Rxf6+ {[%clk 0:00:04.3]} 51. Kxf6 {[%clk 0:00:42]} 51... a3
{[%clk 0:00:04.7]} 52. Rd8+ {[%clk 0:00:42.2]} 52... Kh7 {[%clk 0:00:05.2]} 53.
Rh8# {[%clk 0:00:43.1]} 1-0